[Event "Titled Tuesday Blitz October 11 Early 2022"]
[White "Ziatdinov, Raset"]
[Black "Makhmudov, Shukhrat"]
[WhiteFideId "2015323"]
[BlackFideId "14200775"]
[WhiteElo "2220"]
[BlackElo "2135"]
[Result "1-0"]
[Round "11"]
[TimeControl "180+1"]
[Date "2022.10.12"]
[WhiteClock "0:00:57"]
[BlackClock "0:00:44"]

1. Nc3 {[%clk 0:02:17]}  d5 {[%clk 0:02:54]} 2. d4 {[%clk 0:02:15]}  Nf6 {[%clk 0:02:53]} 3. Bf4 {[%clk 0:02:13]}  c6 {[%clk 0:02:53]} 4. e3 {[%clk 0:02:12]}  Bf5 {[%clk 0:02:53]} 5. f3 {[%clk 0:02:13]}  h6 {[%clk 0:02:51]} 6. g4 {[%clk 0:02:13]}  Bh7 {[%clk 0:02:50]} 7. h4 {[%clk 0:02:14]}  h5 {[%clk 0:02:49]} 8. g5 {[%clk 0:02:13]}  Nfd7 {[%clk 0:02:48]} 9. Bd3 {[%clk 0:02:13]}  Bxd3 {[%clk 0:02:46]} 10. Qxd3 {[%clk 0:02:14]}  g6 {[%clk 0:02:45]} 11. O-O-O {[%clk 0:02:15]}  e6 {[%clk 0:02:46]} 12. e4 {[%clk 0:02:16]}  Bg7 {[%clk 0:02:32]} 13. exd5 {[%clk 0:02:15]}  cxd5 {[%clk 0:02:27]} 14. Nb5 {[%clk 0:02:15]}  Na6 {[%clk 0:02:11]} 15. Nd6+ {[%clk 0:02:09]}  Ke7 {[%clk 0:02:05]} 16. Nxb7 {[%clk 0:01:52]}  Qb6 {[%clk 0:02:04]} 17. Qa3+ {[%clk 0:01:48]}  Nb4 {[%clk 0:01:49]} 18. Bd6+ {[%clk 0:01:44]}  Ke8 {[%clk 0:01:48]} 19. Qxb4 {[%clk 0:01:42]}  Qxb4 {[%clk 0:01:45]} 20. Bxb4 {[%clk 0:01:43]}  Bf8 {[%clk 0:01:35]} 21. Bxf8 {[%clk 0:01:40]}  Kxf8 {[%clk 0:01:34]} 22. Ne2 {[%clk 0:01:39]}  Ke7 {[%clk 0:01:34]} 23. Nf4 {[%clk 0:01:38]}  Rhc8 {[%clk 0:01:33]} 24. Rhe1 {[%clk 0:01:37]}  Kf8 {[%clk 0:01:32]} 25. Nd6 {[%clk 0:01:36]}  Rc6 {[%clk 0:01:32]} 26. Nb5 {[%clk 0:01:32]}  a6 {[%clk 0:01:30]} 27. Nc3 {[%clk 0:01:31]}  Nb6 {[%clk 0:01:30]} 28. Nd3 {[%clk 0:01:31]}  Rac8 {[%clk 0:01:20]} 29. Ne5 {[%clk 0:01:30]}  R6c7 {[%clk 0:01:19]} 30. Nxg6+ {[%clk 0:01:30]}  fxg6 {[%clk 0:01:18]} 31. Rxe6 {[%clk 0:01:31]}  Nc4 {[%clk 0:01:18]} 32. Nxd5 {[%clk 0:01:27]}  Rc6 {[%clk 0:01:15]} 33. Rde1 {[%clk 0:01:23]}  Nd6 {[%clk 0:01:09]} 34. c3 {[%clk 0:01:20]}  Nf5 {[%clk 0:01:09]} 35. Rxc6 {[%clk 0:01:16]}  Rxc6 {[%clk 0:01:09]} 36. Re4 {[%clk 0:01:17]}  Ng3 {[%clk 0:01:07]} 37. Rf4+ {[%clk 0:01:16]}  Kg7 {[%clk 0:01:07]} 38. Rf6 {[%clk 0:01:14]}  Rxf6 {[%clk 0:01:01]} 39. Nxf6 {[%clk 0:01:13]}  Nf5 {[%clk 0:01:00]} 40. d5 {[%clk 0:01:13]}  Nxh4 {[%clk 0:00:56]} 41. c4 {[%clk 0:01:09]}  Nxf3 {[%clk 0:00:56]} 42. c5 {[%clk 0:01:08]}  Nxg5 {[%clk 0:00:54]} 43. c6 {[%clk 0:01:07]}  Nf7 {[%clk 0:00:49]} 44. Ne8+ {[%clk 0:00:56]}  Kf8 {[%clk 0:00:49]} 45. c7 {[%clk 0:00:57]}  Kxe8 {[%clk 0:00:44]} 46. c8=Q+ {[%clk 0:00:57]} 1-0


[Site "https://www.chess.com"]